[Event "London Classic 7th"]
[Site "London"]
[Date "2015.12.04"]
[Round "1"]
[White "Vachier Lagrave, Maxime"]
[Black "Carlsen, Magnus"]
[Result "1/2-1/2"]
[ECO "B33"]
[WhiteElo "2765"]
[BlackElo "2850"]
[Annotator "CB"]
[PlyCount "56"]
[EventDate "2015.12.04"]
[EventType "tourn"]
[EventRounds "9"]
[EventCountry "ENG"]
[EventCategory "22"]
[SourceTitle "CBM 170"]
[Source "ChessBase"]
[SourceDate "2016.01.15"]
[SourceVersion "1"]
[SourceVersionDate "2016.01.15"]
[SourceQuality "1"]
[TimeControl "7200+1605"]
[WhiteClock "1:03:14"]
[BlackClock "0:59:43"]

1. e4 c5 2. Nf3 Nc6 3. d4 cxd4 4. Nxd4 Nf6 5. Nc3 e5 6. Ndb5 d6 7. Bg5 a6 8.
Na3 b5 9. Nd5 Be7 10. Bxf6 Bxf6 11. c3 O-O (11... Ne7 12. Nc2 Nxd5 13. Qxd5 Rb8
14. Nb4 Bb7 15. Qd3 O-O 16. Be2 a5 17. Nd5 b4 18. O-O bxc3 19. bxc3 Bg5 20.
Rab1 Qd7 21. Rb3 Bc6 22. Rfb1 Rxb3 23. Rxb3 g6 24. Rb6 Rc8 25. h3 Bxd5 26. Qxd5
Rxc3 27. Rxd6 Qe7 28. Bd1 Rc7 29. g3 Kg7 30. Ba4 Bc1 31. Rc6 {1/2-1/2 (31)
Giri,A (2793)-Carlsen,M (2853) Saint Louis USA 2015}) (11... Bg5 12. Nc2 O-O
13. a4) 12. Nc2 Rb8 13. a4 $6 {wurde hinterher von Carlsen als ungenau
kritisiert - Vachier-Lagrave verwechselte vermutlich die Varianten} (13. Be2) (
{oder das aggressivere} 13. h4 {versprechen Weiß mehr Aussichten}) 13... bxa4
14. Ncb4 Nxb4 15. cxb4 Bb7 16. Rxa4 Qc8 (16... Bxd5 {wäre vielleicht eine
Möglichkeit gewesen, die Spannung noch weiter aufrecht zu halten} 17. Qxd5 Qd7
18. b3 Rfc8 19. Ra1 (19. Bc4 $2 Rxc4 20. Qxc4 Rc8 $19) 19... Qg4 $1 (19... Rxb4
20. Bxa6 {und hier kann Weiß nicht schlechter stehen}) 20. h3 Qg5 {und Weiß
hat Probleme, den König aus dem Zentrum zu bekommen}) 17. Nxf6+ gxf6 18. Bd3
Bc6 19. Rxa6 Rxb4 20. O-O Rd4 21. Qf3 Bxe4 {führt forciert ins Dauerschach,
doch Schwarz hat keine vorteilsversprechenden Fortsetzungen zur Verfügung} 22.
Bxe4 Qxa6 23. Qg4+ Kh8 24. Qf5 Rxe4 25. Qxf6+ Kg8 26. Qg5+ Kh8 27. Qf6+ Kg8 28.
Qg5+ Kh8 1/2-1/2

[Event "Qatar Masters op"]
[Site "Doha"]
[Date "2015.12.27"]
[Round "7"]
[White "Carlsen, Magnus"]
[Black "Giri, Anish"]
[Result "1/2-1/2"]
[ECO "B92"]
[WhiteElo "2834"]
[BlackElo "2784"]
[Annotator "CB"]
[PlyCount "103"]
[EventDate "2015.12.20"]
[EventType "swiss"]
[EventRounds "9"]
[EventCountry "QAT"]
[SourceTitle "CBM 170"]
[Source "ChessBase"]
[SourceDate "2016.01.15"]
[SourceVersion "1"]
[SourceVersionDate "2016.01.15"]
[SourceQuality "1"]
[TimeControl "6000+670"]
[WhiteClock "0:32:18"]
[BlackClock "0:26:39"]

1. e4 c5 2. Nf3 d6 3. d4 Nf6 4. Nc3 cxd4 5. Nxd4 a6 6. Be2 {Carlsen - mit
einem halben Punkt Vorsprung in der Tabelle - scheut riskante Varianten und
versucht mit diesem System einen kleinen Vorteil zu bekommen und danach zu
drücken.} e5 7. Nb3 Be7 8. Bg5 Be6 (8... Nc6 $5 {war Carlsens Wahl in der
vierten Runde} 9. Qd3 Nb4 10. Qd2 h6 11. Bxf6 Bxf6 12. Nd5 Nxd5 13. Qxd5 Qc7
14. O-O-O Be7 15. Kb1 Be6 $15 {0-1 (42) Duda,J (2663)-Carlsen,M (2834) 2015})
9. Bxf6 Bxf6 10. Qd3 Be7 11. Nd5 Nd7 12. Rd1 (12. O-O-O Bxd5 13. Qxd5 Qc7 $11 {
bringt etwas Schärfe in die Stellung, doch gibt Schwarz auch einen
potentiellen Königsangriff}) 12... Bxd5 13. Qxd5 Qc7 {Diagramm [#] Ein sehr
typisches Szenario der Najdorf-Variante: Weiß hat das Feld d5 fest unter
Kontrolle und setzt nun alles daran, eine Leichtrigur, im Optimalfall den
Springer dorthin zu bringen. Mögliche Zugangsfelder sind e3 und b4, da der
Bauer auf c2 auf c3 gestellt werden muss, da er ansonsten schwer zu decken ist.
Nach e3 oder b4 kommt der Springer am besten über d2-f1-->e3 oder a1-c2 -->
e3/b4} 14. Nd2 {bringt den Springer über zweitgenannte Route auf den Weg
Richtung d5 - wo er allerdings nie ankommen wird} (14. Qc4 Qxc4 15. Bxc4 Nf6
16. Bd5 Nxd5 17. Rxd5 Rc8 {ist die optimale Figurenverteilung für Weiß, doch
auch hier ist der Sb3 zu weit vom Idealziel d5 entfernt - zudem kann Schwarz
schnell seine Entwicklung vollenden und mit .. .f5 das weiße Zentrum
attackieren.} 18. c3 g6 19. Ke2 Kd7 20. Rhd1 Ke6 21. Nd2 f5 22. a4 Rhd8 23. c4
Rc6 24. b3 Rf8 25. f4 exf4 26. Kf3 Rc5 27. Re1 Kd7 28. Rxc5 dxc5 29. exf5 Rxf5
30. Ne4 h5 31. Nc3 g5 32. h3 Bd6 33. Nd5 Be5 34. h4 gxh4 35. Rh1 Rg5 36. Rxh4
Rg3+ 37. Ke4 Bd6 38. Rxh5 Rxb3 39. Rh6 Rb2 40. Nf6+ Kc6 41. Kf5 Bb8 42. a5 {
1/2-1/2 (42) Vachier Lagrave,M (2766)-Wojtaszek,R (2733) Biel 2014}) (14. c3 $5
O-O 15. O-O b5 16. Na1 {[%cal Ga1c2,Gc2b4,Gc2e3] wäre die Alternative gewesen:
Der Vorteil von dem Sc2 ist klar ersichtlich: Schwarz muss sich um beide
Problemfelder gleichzeitig kümmern}) 14... O-O 15. O-O (15. Nc4 $6 {
funktioniert ohne Rochade nicht} Nf6 16. Qd3 b5 17. Ne3 Qa5+ {[%csl Ga2]})
15... b5 16. c3 g6 17. a3 {mit der möglichen Drohung c4 - folgende
Konstellation wäre für Weiß gut} Rab8 (17... Rfe8 $2 18. c4 Nb6 19. Qd3 bxc4
20. Nxc4 Nxc4 21. Qxc4 Qxc4 22. Bxc4 $16) 18. Rfe1 Rfd8 19. Qa2 (19. Nf1 $2 Nf6
20. Qd3 d5 $15) 19... Nc5 20. Bf1 Bg5 21. Nb3 {spätestens hier ist klar, dass
der weiße Plan nicht aufgegangen ist, der Springer hat auf b3 keine Zukunft}
Qc6 22. Na5 Qc7 23. Nb3 Qc6 24. Rd5 Nd7 25. Rd3 Nc5 26. Rf3 $5 (26. Rd5 {
mit Remisschluss wäre eine logische Folge gewesen. Doch Carlsen findet eine
interessante Ressource, der Partie noch einmal Leben einzuhauchen.}) 26... Rd7
{Diagramm [#]} 27. Na5 Qa8 28. Qd5 Qxd5 29. exd5 {Schwarz ist von seinem
Problemfeld d5 erlöst und kann nun seine Bauernmehrheit auf den Vormarsch
bringen. Weiß hingegen hat mit b4 nebst c4 und Spiel auf den weißen Feldern
einen ebenso konkreten Plan.} e4 30. Rh3 f5 31. Nc6 Rb6 32. b4 Na4 33. c4 Rc7
34. Rb3 {soweit verlief in diesem Partiestadium alles logisch, nun ist es für
beide Seiten schwer die Stellung wirklich zu verstärken ohne große Schwächen
zu kreieren.} Bd2 {gibt das Zugrecht ab, allerdings steht der Turm auf d1
schlechter als auf e1} (34... Bf6 35. f3 $13) 35. Rd1 Bg5 36. g3 Bf6 37. Rc1
Rbxc6 $5 {nicht erzwungen, da c5 wohl nicht drohte, aber aussichtsreich} (37...
Kg7 38. f3 $5 $13 (38. c5 $2 Rbxc6 39. dxc6 Rxc6 $15)) 38. dxc6 Rxc6 39. Rbb1
Bg5 40. Rc2 d5 41. c5 d4 42. Rd1 Bf6 $1 (42... d3 $2 43. Bxd3 exd3 44. Rxd3 $16
) 43. Rcd2 Nc3 {wickelt in ein Endspiel ab, dass mit etwas genauem Spiel von
Schwarz remis ist} 44. Rxd4 Nxd1 45. Rxd1 Bb2 46. Rd8+ Kf7 47. Ra8 Bxa3 48.
Bxb5 Rc7 (48... axb5 $2 49. Rxa3 $16) 49. Rxa6 Bxb4 50. c6 Ke7 51. Rb6 Bd6 52.
Rb7 1/2-1/2

[Event "Bilbao Masters 9th"]
[Site "Bilbao"]
[Date "2016.07.23"]
[Round "10"]
[White "So, Wesley"]
[Black "Carlsen, Magnus"]
[Result "1/2-1/2"]
[ECO "D38"]
[WhiteElo "2770"]
[BlackElo "2855"]
[Annotator "CB"]
[PlyCount "75"]
[EventDate "2016.07.13"]
[EventType "tourn"]
[EventRounds "10"]
[EventCountry "ESP"]
[EventCategory "22"]
[SourceTitle "CBM 174"]
[Source "ChessBase"]
[SourceDate "2016.09.13"]
[SourceVersion "1"]
[SourceVersionDate "2016.09.13"]
[SourceQuality "1"]
[TimeControl "40/5400:3600+10"]

1. d4 Nf6 2. c4 e6 3. Nf3 d5 4. Nc3 Bb4 5. Bg5 h6 6. Bxf6 Qxf6 7. e3 O-O 8. Rc1
dxc4 9. Bxc4 c5 10. O-O cxd4 11. Nxd4 Bd7 12. Qb3 {danach verflacht die Partie
sehr schnell} (12. Ne4 {ist ein ambitionierterer Versuch} Qe7 13. Qh5 Nc6 14.
Nb3 Be8 15. a3 f5 16. Qe2 Bxa3 17. bxa3 fxe4 18. Nc5 Ne5 19. Ba2 Nf3+ 20. Kh1
Qh4 21. gxf3 Bh5 22. Bxe6+ Kh8 23. Bg4 exf3 24. Qb2 Bxg4 25. Rg1 Rf7 26. Qd4 h5
27. Nd3 Rd8 28. Qe4 Qe7 29. Qxe7 Rxe7 30. Nf4 Kh7 31. Rc5 g6 32. h3 Bf5 33.
Nxh5 Bxh3 34. Kh2 Bf5 35. Nf6+ Kh6 36. e4 Rf8 37. e5 b6 38. Rd5 Kg7 39. Kg3 Be6
40. Rh1 Bg8 41. Kf4 Rc8 42. Rd4 b5 43. Re1 a5 44. Kxf3 Rc3+ 45. Kf4 Rxa3 46.
Nxg8 Kxg8 47. e6 Ra4 48. Rxa4 bxa4 49. Ke5 Kg7 50. Kd6 Kf8 51. Rc1 Re8 52. Ke5
a3 53. Kf6 a2 54. Ra1 Rb8 55. f4 Rb4 56. f5 gxf5 57. Rxa2 Rh4 58. Rd2 Rh6+ 59.
Ke5 Rh1 60. Kd6 Ke8 61. Rg2 Rd1+ 62. Ke5 Rh1 63. Rg6 Ke7 64. Rg7+ Ke8 65. Kf6
Rh6+ 66. Ke5 Rh1 {1/2-1/2 (66) So,W (2762)-Hou,Y (2673) Wijk aan Zee 2015 CBM
165 [Ftacnik,L]}) 12... Nc6 13. Nxc6 Bxc3 14. Qxb7 (14. Rxc3 Bxc6 15. Bb5 Bd5
16. Bc4 Bc6 17. Bb5 Bd5 18. Bc4 {1/2-1/2 (18) Ivanchuk,V (2715)-Carlsen,M 
(2862) Wijk aan Zee 2015}) 14... Bxc6 15. Qxc6 Bxb2 16. Rc2 Rac8 17. Qa4 Rc7 {
Diagramm [#] Weiß hat aufgrund der etwas besser platzierten Figuren
"symbolischen Vorteil", doch die Stellung gibt freilich zu wenig her um den
Weltmeister unter Druck zu setzen} 18. Bd3 Rxc2 19. Bxc2 Rc8 20. Rd1 Qc3 21.
Bb3 Qc5 22. g3 Bf6 23. Rd7 Rc7 24. Rxc7 Qxc7 25. Qe8+ Kh7 26. h4 g6 27. Qa8 Kg7
28. Kg2 h5 29. Qe4 a5 30. Ba4 Qc5 31. Qb7 Qb4 32. Qxb4 axb4 33. Kf3 Bc3 34. Kg2
Be1 35. Kf1 Bc3 36. Kg2 Be1 37. Kf1 Bc3 38. Kg2 1/2-1/2

[Event "Tata Steel-A 79th"]
[Site "Wijk aan Zee"]
[Date "2017.01.14"]
[Round "1"]
[White "So, Wesley"]
[Black "Carlsen, Magnus"]
[Result "1/2-1/2"]
[ECO "D15"]
[WhiteElo "2808"]
[BlackElo "2840"]
[PlyCount "65"]
[EventDate "2017.01.14"]
[EventType "tourn"]
[EventRounds "13"]
[EventCountry "NED"]
[EventCategory "21"]
[SourceTitle "CBM 177"]
[Source "ChessBase"]
[SourceDate "2017.03.16"]
[SourceVersion "1"]
[SourceVersionDate "2017.03.16"]
[SourceQuality "1"]
[TimeControl "40/6000+30:20/3000+30:900+30"]

1. d4 {[%emt 0:00:00]} d5 {[%emt 0:00:10]} 2. c4 {[%emt 0:00:00]} c6 {[%emt 0:
00:06]} 3. Nf3 {[%emt 0:00:14]} Nf6 {[%emt 0:00:08]} 4. e3 {[%emt 0:00:40]} Bf5
{[%emt 0:02:24]} 5. Nc3 {[%emt 0:00:19]} a6 {[%emt 0:00:09]} 6. Ne5 {[%emt 0:
09:36]} Nbd7 {[%emt 0:00:24]} 7. Qb3 {[%emt 0:01:43]} Qc7 {[%emt 0:00:06]} 8.
cxd5 {[%emt 0:03:51]} Nxe5 {[%emt 0:00:06]} 9. dxe5 {[%emt 0:00:05]} Nxd5 {
[%emt 0:00:04]} 10. Nxd5 {[%emt 0:00:34]} cxd5 {[%emt 0:00:02]} 11. Bd2 {
[%emt 0:00:08]} Qxe5 {[%emt 0:00:20]} 12. Bc3 {[%emt 0:01:21]} Qc7 {[%emt 0:01:
18]} 13. Qxd5 {[%emt 0:01:16]} e6 {[%emt 0:07:10]} 14. Qc4 $146 {[%emt 0:17:54]
} (14. Qd4 Rd8 15. Qa4+ Qd7 16. Qxd7+ Rxd7 17. f3 f6 18. e4 Bg6 19. Bc4 Bf7 20.
e5 Be7 21. Ke2 fxe5 22. Bxe5 Bf6 23. Bxf6 gxf6 24. Rhd1 Rg8 25. g3 Rg5 26. Rxd7
Kxd7 27. Rd1+ Ke7 28. b4 Rg8 29. Rd4 Rc8 30. Rh4 Bg6 31. a4 e5 32. Bd3 b5 33.
axb5 axb5 34. Bxb5 Rc2+ 35. Kd1 Rb2 36. Ba4 e4 37. fxe4 Rxb4 38. Bc2 f5 39. Kd2
fxe4 40. Kc3 Rb6 41. Bxe4 Bxe4 42. Rxe4+ Kf6 43. Rh4 Kg6 {Kovalenko,I (2667)
-Andreikin,D (2733) Poikovsky 2016 1/2-1/2}) 14... Qxc4 {[%emt 0:02:49]} 15.
Bxc4 {[%emt 0:00:05]} Rc8 {[%emt 0:00:30]} 16. Bb3 {[%emt 0:07:53]} Be7 {
[%emt 0:11:51]} 17. Ke2 {[%emt 0:04:54]} Be4 {[%emt 0:02:58]} 18. Bxg7 {
[%emt 0:14:53]} Rg8 {[%emt 0:00:05]} 19. Be5 {[%emt 0:00:05]} Rxg2 {[%emt 0:01:
16]} 20. Rac1 {[%emt 0:06:33]} Rxc1 {[%emt 0:00:14]} 21. Rxc1 {[%emt 0:00:03]}
Rg5 {[%emt 0:00:30]} 22. Bf4 {[%emt 0:01:32]} Rc5 {[%emt 0:00:08]} 23. Rxc5 {
[%emt 0:00:05]} Bxc5 {[%emt 0:00:02]} 24. Bc4 {[%emt 0:00:07]} b5 {[%emt 0:00:
22]} 25. Bd3 {[%emt 0:00:04]} Bxd3+ {[%emt 0:00:08]} 26. Kxd3 {[%emt 0:00:04]}
f5 {[%emt 0:00:10]} 27. f3 {[%emt 0:00:04]} Kd7 {[%emt 0:00:06]} 28. e4 {
[%emt 0:00:06]} Kc6 {[%emt 0:00:15]} 29. h3 {[%emt 0:00:06]} h5 {[%emt 0:00:23]
} 30. b3 {[%emt 0:00:05]} Bb6 {[%emt 0:00:11]} 31. Be5 {[%emt 0:00:03]} Bc5 {
[%emt 0:00:11]} 32. Bf4 {[%emt 0:00:04]} Bb6 {[%emt 0:00:06]} 33. Be5 {[%emt 0:
00:02]} 1/2-1/2

[Event "Tata Steel-A 79th"]
[Site "Wijk aan Zee"]
[Date "2017.01.16"]
[Round "3"]
[White "Andreikin, Dmitry"]
[Black "Carlsen, Magnus"]
[Result "1/2-1/2"]
[ECO "E01"]
[WhiteElo "2736"]
[BlackElo "2840"]
[PlyCount "53"]
[EventDate "2017.01.14"]
[EventType "tourn"]
[EventRounds "13"]
[EventCountry "NED"]
[EventCategory "21"]
[SourceTitle "CBM 177"]
[Source "ChessBase"]
[SourceDate "2017.03.16"]
[SourceVersion "1"]
[SourceVersionDate "2017.03.16"]
[SourceQuality "1"]
[TimeControl "40/6000+30:20/3000+30:900+30"]

1. d4 {[%emt 0:00:00]} Nf6 {[%emt 0:01:15]} 2. c4 {[%emt 0:00:18]} e6 {[%emt 0:
00:37]} 3. Nf3 {[%emt 0:00:22]} d5 {[%emt 0:00:08]} 4. g3 {[%emt 0:00:14]} Bb4+
{[%emt 0:00:17]} 5. Bd2 {[%emt 0:00:07]} Bd6 {[%emt 0:00:09]} 6. Bg2 {[%emt 0:
01:14]} O-O {[%emt 0:02:27]} 7. O-O {[%emt 0:00:29]} Nbd7 {[%emt 0:01:16]} 8.
Qc2 {[%emt 0:00:58]} c6 {[%emt 0:00:18]} 9. Bf4 {[%emt 0:02:39]} Bxf4 {[%emt 0:
01:19]} 10. gxf4 {[%emt 0:00:07]} b6 {[%emt 0:04:12]} 11. Ne5 {[%emt 0:00:20]}
Nxe5 $146 {[%emt 0:13:40]} (11... c5 12. dxc5 Nxc5 13. Nc3 Bb7 14. Rfd1 Rc8 15.
Rd4 Qe7 16. Rad1 dxc4 17. Bxb7 Nxb7 18. Rd7 Nxd7 19. Rxd7 Qh4 20. Rxb7 Qxf4 21.
Nf3 Rc7 22. Rxc7 Qxc7 23. Ng5 g6 24. Qe4 h6 25. Nf3 a6 26. Qe3 Kg7 27. Ne5 b5
28. Ng4 g5 29. Ne4 Qf4 30. Qh3 h5 31. Ngf6 Rh8 32. Qc3 e5 33. Qb4 Rh6 34. Ne8+
Kg8 35. N8d6 h4 36. h3 g4 37. e3 Qf3 38. Qc5 Rg6 39. Qc8+ Kh7 40. Kh2 g3+ {
0-1 (40) Bacrot,E (2709)-Adams,M (2682) England 2010}) 12. fxe5 {[%emt 0:01:19]
} Ng4 {[%emt 0:00:18]} 13. Nd2 {[%emt 0:08:50]} Ba6 {[%emt 0:02:51]} 14. cxd5 {
[%emt 0:10:39]} cxd5 {[%emt 0:00:55]} 15. Nf3 {[%emt 0:00:16]} Nh6 {[%emt 0:13:
56]} 16. Bh3 {[%emt 0:08:15]} f5 {[%emt 0:01:54]} 17. Kh1 {[%emt 0:27:57]} Kh8
{[%emt 0:14:41]} 18. Rg1 {[%emt 0:00:22]} Nf7 {[%emt 0:01:12]} 19. Rg3 {
[%emt 0:14:37]} Rc8 {[%emt 0:08:55]} 20. Qd2 {[%emt 0:00:10]} Qc7 {[%emt 0:02:
37]} 21. Ne1 {[%emt 0:01:34]} Qe7 {[%emt 0:01:38]} 22. f4 {[%emt 0:03:39]} Rc7
{[%emt 0:01:36]} 23. Ra3 {[%emt 0:03:00]} Bb5 {[%emt 0:00:28]} 24. Rb3 {
[%emt 0:00:15]} Ba6 {[%emt 0:01:03]} 25. Ra3 {[%emt 0:00:05]} Bb5 {[%emt 0:00:
14]} 26. Rb3 {[%emt 0:00:05]} Ba6 {[%emt 0:05:50]} 27. Ra3 1/2-1/2

[Event "Tata Steel-A 79th"]
[Site "Wijk aan Zee"]
[Date "2017.01.20"]
[Round "6"]
[White "Aronian, Levon"]
[Black "Carlsen, Magnus"]
[Result "1/2-1/2"]
[ECO "D15"]
[WhiteElo "2780"]
[BlackElo "2840"]
[PlyCount "60"]
[EventDate "2017.01.14"]
[EventType "tourn"]
[EventRounds "13"]
[EventCountry "NED"]
[EventCategory "21"]
[SourceTitle "CBM 177"]
[Source "ChessBase"]
[SourceDate "2017.03.16"]
[SourceVersion "1"]
[SourceVersionDate "2017.03.16"]
[SourceQuality "1"]
[TimeControl "40/6000+30:20/3000+30:900+30"]

1. d4 {[%emt 0:00:00]} d5 {[%emt 0:00:17]} 2. c4 {[%emt 0:00:00]} c6 {[%emt 0:
00:04]} 3. Nc3 {[%emt 0:00:00]} Nf6 {[%emt 0:00:07]} 4. e3 {[%emt 0:00:00]} a6
{[%emt 0:00:11]} 5. Nf3 {[%emt 0:00:00]} Bf5 {[%emt 0:00:11]} 6. Be2 {[%emt 0:
00:00]} h6 {[%emt 0:00:13]} 7. Qb3 {[%emt 0:00:03]} Ra7 {[%emt 0:00:08]} 8.
cxd5 {[%emt 0:00:04]} cxd5 {[%emt 0:00:06]} 9. Ne5 {[%emt 0:01:01]} e6 {
[%emt 0:00:06]} 10. Bd2 {[%emt 0:01:49]} Be7 {[%emt 0:01:34]} 11. O-O {[%emt 0:
00:15]} O-O {[%emt 0:00:07]} 12. Rfc1 {[%emt 0:00:03]} Nfd7 {[%emt 0:10:26]}
13. Nxd7 {[%emt 0:00:07]} Qxd7 {[%emt 0:00:08]} 14. Na4 {[%emt 0:00:50]} Nc6 {
[%emt 0:01:20]} 15. Qb6 $146 {[%emt 0:00:37]} (15. Nc5 Qc7 16. h3 Rc8 17. a4
Bd6 18. a5 Qe7 19. Bd3 Bxd3 20. Nxd3 Raa8 21. Rc2 Na7 22. Rac1 Rxc2 23. Rxc2 {
1/2-1/2 (23) Le,Q (2702)-Vallejo Pons,F (2706) Tromsoe 2013}) 15... Rfa8 {
[%emt 0:11:04]} 16. Nc5 {[%emt 0:00:10]} Qc8 {[%emt 0:00:19]} 17. a3 {[%emt 0:
01:55]} Bd6 {[%emt 0:08:40]} 18. g3 {[%emt 0:01:30]} Bc7 {[%emt 0:11:47]} 19.
Qb3 {[%emt 0:00:07]} Qe8 {[%emt 0:01:50]} 20. Bf1 {[%emt 0:18:02]} Rb8 {
[%emt 0:12:14]} 21. Qc3 {[%emt 0:06:21]} Bd8 {[%emt 0:06:53]} 22. Nxa6 {
[%emt 0:05:34]} bxa6 {[%emt 0:00:03]} 23. Qxc6 {[%emt 0:00:12]} Qxc6 {[%emt 0:
00:03]} 24. Rxc6 {[%emt 0:00:06]} Rxb2 {[%emt 0:00:04]} 25. Be1 {[%emt 0:00:08]
} Be7 {[%emt 0:01:58]} 26. Rxa6 {[%emt 0:10:32]} Rab7 {[%emt 0:00:10]} 27. Rc6
{[%emt 0:00:17]} Rb1 {[%emt 0:00:08]} 28. Rc1 {[%emt 0:00:05]} Rxc1 {[%emt 0:
00:06]} 29. Rxc1 {[%emt 0:00:04]} Bxa3 {[%emt 0:00:06]} 30. Ra1 {[%emt 0:00:07]
} Rb1 {[%emt 0:00:24]} 1/2-1/2

[Event "Tata Steel-A 79th"]
[Site "Wijk aan Zee"]
[Date "2017.01.25"]
[Round "10"]
[White "Harikrishna, Pentala"]
[Black "Carlsen, Magnus"]
[Result "1/2-1/2"]
[ECO "C48"]
[WhiteElo "2766"]
[BlackElo "2840"]
[PlyCount "73"]
[EventDate "2017.01.14"]
[EventType "tourn"]
[EventRounds "13"]
[EventCountry "NED"]
[EventCategory "21"]
[SourceTitle "CBM 177"]
[Source "ChessBase"]
[SourceDate "2017.03.16"]
[SourceVersion "1"]
[SourceVersionDate "2017.03.16"]
[SourceQuality "1"]
[TimeControl "40/6000+30:20/3000+30:900+30"]

1. e4 {[%emt 0:00:00]} e5 {[%emt 0:00:04]} 2. Nf3 {[%emt 0:00:00]} Nc6 {
[%emt 0:00:04]} 3. Nc3 {[%emt 0:00:00]} Nf6 {[%emt 0:00:12]} 4. Bb5 {[%emt 0:
00:00]} Bd6 {[%emt 0:00:43]} 5. d3 {[%emt 0:00:31]} O-O {[%emt 0:03:20]} 6. O-O
{[%emt 0:06:32]} (6. a3 Re8 7. g4 Bc5 8. Rg1 d5 9. g5 Ng4 10. Rg2 Nxf2 11. Rxf2
Bxf2+ 12. Kxf2 d4 13. Ne2 Qd6 14. Ng3 Bg4 15. Qh1 Rf8 16. Bc4 Ne7 17. h3 Be6
18. Nh4 Bxc4 19. dxc4 f6 20. Nhf5 Nxf5 21. exf5 fxg5 22. Bxg5 c6 23. Re1 d3 24.
cxd3 Qxd3 25. Qe4 Qb3 26. Re2 Rae8 27. Kg2 Rf7 28. Rd2 Ref8 29. h4 b5 30. cxb5
cxb5 31. Qxe5 h6 32. Be3 Rc8 33. Nh5 Rc2 34. f6 Rxd2+ 35. Bxd2 Qd3 {Naiditsch,
A (2687)-Malakhov,V (2713) Doha 2016 1-0 (73)}) 6... h6 {[%emt 0:01:49]} 7. a3
{[%emt 0:00:21]} Re8 {[%emt 0:00:59]} 8. h3 {[%emt 0:02:07]} Bc5 {[%emt 0:08:
08]} 9. Be3 {[%emt 0:05:39]} Nd4 {[%emt 0:03:55]} 10. Bc4 {[%emt 0:03:08]} c6 {
[%emt 0:02:43]} 11. Re1 $146 {[%emt 0:07:29]} (11. Bxd4 exd4 12. Ne2 d5 13.
exd5 Nxd5 14. Re1 Nf6 15. Qd2 Be6 16. Bxe6 Rxe6 17. Ng3 Rxe1+ 18. Rxe1 Qd7 19.
Qf4 Nd5 20. Qe5 f6 21. Qe4 Nc7 22. Qf5 Qxf5 23. Nxf5 Rd8 24. b4 Bf8 25. N5xd4
c5 26. bxc5 Bxc5 27. Nb3 Bxa3 28. Ra1 Nb5 29. Na5 Bf8 30. Nxb7 Rb8 31. Na5 Nc3
32. Nc4 Bc5 33. Kf1 f5 34. g3 f4 35. gxf4 Nd5 36. d4 Bf8 37. f5 Nf4 38. h4 Rb4
39. Ne3 a5 40. c4 a4 {Acs,P (2567)-Hera,I (2564) Hungary 2013 1/2-1/2 (74)})
11... Nxf3+ {[%emt 0:03:15]} 12. Qxf3 {[%emt 0:00:06]} Bxe3 {[%emt 0:00:06]}
13. fxe3 {[%emt 0:01:16]} b5 {[%emt 0:01:15]} 14. Ba2 {[%emt 0:00:12]} a5 {
[%emt 0:01:33]} 15. Ne2 {[%emt 0:08:01]} d6 {[%emt 0:09:33]} 16. Ng3 {[%emt 0:
03:14]} Be6 {[%emt 0:05:16]} 17. Rf1 {[%emt 0:05:34]} d5 {[%emt 0:01:59]} 18.
Rf2 {[%emt 0:05:40]} Ra7 {[%emt 0:05:48]} 19. exd5 {[%emt 0:03:18]} cxd5 {
[%emt 0:00:16]} 20. Nf5 {[%emt 0:03:12]} Kh7 {[%emt 0:08:06]} 21. Qg3 {[%emt 0:
07:10]} Bxf5 {[%emt 0:12:53]} 22. Rxf5 {[%emt 0:00:06]} Rc7 {[%emt 0:00:07]}
23. c3 {[%emt 0:05:10]} b4 {[%emt 0:05:39]} 24. cxb4 {[%emt 0:01:03]} axb4 {
[%emt 0:00:05]} 25. a4 {[%emt 0:01:33]} b3 {[%emt 0:03:29]} 26. Bxb3 {[%emt 0:
00:11]} Qb8 {[%emt 0:00:23]} 27. Ra3 {[%emt 0:02:53]} e4 {[%emt 0:01:26]} 28.
Kh2 {[%emt 0:04:19]} exd3 {[%emt 0:06:35]} 29. Bxd5 {[%emt 0:00:39]} d2 {
[%emt 0:01:02]} 30. Rd3 {[%emt 0:07:55]} Rc2 {[%emt 0:15:11]} 31. Qxb8 {
[%emt 0:04:20]} Rxb8 {[%emt 0:00:01]} 32. b3 {[%emt 0:01:22]} Nxd5 {[%emt 0:00:
24]} 33. Rfxd5 {[%emt 0:00:11]} d1=Q {[%emt 0:00:06]} 34. Rxd1 {[%emt 0:00:05]}
Rxb3 {[%emt 0:00:10]} 35. R5d2 {[%emt 0:03:11]} Rxd2 {[%emt 0:00:07]} 36. Rxd2
{[%emt 0:00:04]} Ra3 {[%emt 0:00:07]} 37. Kg1 {[%emt 0:00:23]} 1/2-1/2